[Event "GER-ch Youth-U12 2024"]
[Site "Willingen"]
[Date "2024.05.19"]
[Round "2"]
[White "Kaza, Charith"]
[Black "Zimmer, Tim"]
[Result "1/2-1/2"]
[ECO "C50"]
[WhiteElo "1503"]
[BlackElo "1772"]
[Annotator "NA RC"]
[PlyCount "157"]
[EventDate "2022.06.05"]
[EventType "swiss"]
[EventRounds "9"]
[EventCountry "GER"]
[SourceTitle "playchess.com"]
[Source "ChessBase"]
[SourceQuality "1"]
[TimeControl "40/4500+30:900+30"]

1. e4 {[%emt 0:00:00]} e5 {[%emt 0:00:00]} 2. Nf3 {[%emt 0:00:00]} Nc6 {[%emt 0:00:00]} 3. Bc4 {[%emt 0:00:00]} Bc5 {[%emt 0:00:00]} 4. d3 {[%emt 0:00:00]} Nf6 {[%emt 0:00:00]} 5. O-O {[%emt 0:00:00]} d6 {[%emt 0:00:00]} 6. h3 {[%emt 0:00:00]} Be6 {[%emt 0:00:00]} 7. Bb3 {[%emt 0:00:00]} h6 {[%emt 0:00:00]} 8. c3 {[%emt 0:00:00]} Bb6 {[%emt 0:00:00]} 9. Re1 {[%emt 0:00:00]} O-O {[%emt 0:00:00]} 10. Be3 {[%emt 0:00:00]} Ne7 {[%emt 0:00:00]} 11. Bxb6 {[%emt 0:00:00]} axb6 {[%emt 0:00:00]} 12. d4 {[%emt 0:00:00]} Ng6 {[%emt 0:02:01]} 13. Bxe6 {[%emt 0:00:00]} fxe6 {[%emt 0:00:08]} 14. dxe5 {[%emt 0:00:00]} dxe5 {[%emt 0:00:09]} 15. Nbd2 {[%emt 0:00:00]} Nh5 {[%emt 0:12:16]} 16. g3 {[%emt 0:00:00]} Qe7 {[%emt 0:12:56]} 17. Rf1 {[%emt 0:08:07]} Qc5 {[%emt 0:11:50]} 18. Nb3 {[%emt 0:04:31]} Qc6 {[%emt 0:05:46]} 19. Qe2 {[%emt 0:02:20]} Nf6 {[%emt 0:01:03]} 20. Nfd2 {[%emt 0:03:03]} Rf7 {[%emt 0:03:37]} 21. a3 {[%emt 0:04:41]} Rd8 {[%emt 0:08:28]} 22. Rad1 {[%emt 0:02:06]} Rfd7 {[%emt 0:01:44]} 23. f3 {[%emt 0:01:47]} Rd3 {[%emt 0:05:10]} 24. Nd4 {[%emt 0:03:22]} exd4 {[%emt 0:05:37]} 25. Qxd3 {[%emt 0:00:13]} e5 {[%emt 0:09:59]} 26. Qc4+ {[%emt 0:01:05]} Qxc4 {[%emt 0:01:40]} 27. Nxc4 {[%emt 0:00:07]} d3 {[%emt 0:00:15]} 28. Rf2 {[%emt 0:00:31]} b5 {[%emt 0:00:35]} 29. Ne3 {[%emt 0:00:34]} c5 {[%emt 0:00:10]} 30. b3 {[%emt 0:00:06]} Ne7 {[%emt 0:00:32]} 31. Rfd2 {[%emt 0:00:17]} Ra8 {[%emt 0:00:09]} 32. Ra1 {[%emt 0:01:22]} b4 {[%emt 0:00:23]} 33. cxb4 {[%emt 0:00:07]} cxb4 {[%emt 0:00:11]} 34. a4 {[%emt 0:00:12]} Rd8 {[%emt 0:00:13]} 35. Rad1 {[%emt 0:00:12]} Nc6 {[%emt 0:00:06]} 36. Rxd3 {[%emt 0:00:12]} Nd4 {[%emt 0:00:05]} 37. Kf2 {[%emt 0:01:29]} Rf8 {[%emt 0:00:25]} 38. Kg2 {[%emt 0:01:17]} Rc8 {[%emt 0:00:11]} 39. Nc4 {[%emt 0:00:59]} Nd7 {[%emt 0:00:29]} 40. f4 {[%emt 0:00:34]} Nc5 {[%emt 0:00:58]} 41. fxe5 {[%emt 0:16:12]} Nxd3 {[%emt 0:15:23]} 42. Rxd3 {[%emt 0:00:06]} Nxb3 {[%emt 0:00:11]} 43. Rxb3 {[%emt 0:01:00]} Rxc4 {[%emt 0:00:03]} 44. Kf3 {[%emt 0:00:39]} Kf7 {[%emt 0:01:50]} 45. Ke3 {[%emt 0:00:31]} Ke6 {[%emt 0:01:51]} 46. Kd3 {[%emt 0:00:48]} Rc7 {[%emt 0:02:38]} 47. Rxb4 {[%emt 0:00:50]} Kxe5 {[%emt 0:00:08]} 48. Rb5+ {[%emt 0:00:10]} Ke6 {[%emt 0:00:31]} 49. Kd4 {[%emt 0:00:25]} Rd7+ {[%emt 0:01:23]} 50. Rd5 {[%emt 0:00:05]} Rc7 {[%emt 0:00:22]} 51. Rb5 {[%emt 0:00:58]} Rd7+ {[%emt 0:02:04]} 52. Ke3 {[%emt 0:01:54]} Rc7 {[%emt 0:00:49]} 53. a5 {[%emt 0:00:22]} Rd7 {[%emt 0:00:00]} 54. Kf4 {[%emt 0:00:00]} Rf7+ {[%emt 0:00:00]} 55. Rf5 {[%emt 0:00:00]} Rc7 {[%emt 0:00:00]} 56. Rb5 {[%emt 0:00:00]} Rf7+ {[%emt 0:00:00]} 57. Kg4 {[%emt 0:00:00]} Rc7 {[%emt 0:00:00]} 58. Rb3 {[%emt 0:00:00]} Rf7 {[%emt 0:00:00]} 59. h4 {[%emt 0:00:00]} Ke5 {[%emt 0:00:00]} 60. Rb4 {[%emt 0:00:00]} Ke6 {[%emt 0:00:00]} 61. Kh5 {[%emt 0:00:00]} Ke5 {[%emt 0:00:00]} 62. g4 {[%emt 0:00:00]} Rc7 {[%emt 0:00:00]} 63. g5 {[%emt 0:00:00]} hxg5 {[%emt 0:00:00]} 64. hxg5 {[%emt 0:00:00]} Rd7 {[%emt 0:00:22]} 65. Ra4 {[%emt 0:00:00]} Rd6 {[%emt 0:00:28]} 66. Rb4 {[%emt 0:00:00]} Rd7 {[%emt 0:00:11]} 67. Kg6 {[%emt 0:00:00]} Rc7 {[%emt 0:02:29]} 68. Ra4 {[%emt 0:00:00]} Rd7 {[%emt 0:00:15]} 69. Rc4 {[%emt 0:00:00]} Re7 {[%emt 0:00:28]} 70. Rc8 {[%emt 0:00:00]} Kxe4 {[%emt 0:02:07]} 71. Rg8 {[%emt 0:00:00]} Re5 {[%emt 0:02:47]} 72. Rxg7 {[%emt 0:00:00]} Kf4 {[%emt 0:00:06]} 73. Rf7+ {[%emt 0:00:32]} Kg4 {[%emt 0:00:19]} 74. Kf6 {[%emt 0:01:39]} Rf5+ {[%emt 0:01:12]} 75. Ke6 {[%emt 0:00:19]} Rxg5 {[%emt 0:00:12]} 76. Rxb7 {[%emt 0:00:22]} Rxa5 {[%emt 0:00:04]} 77. Rd7 {[%emt 0:00:27]} Kf4 {[%emt 0:00:08]} 78. Rd5 {[%emt 0:00:16]} Rxd5 {[%emt 0:00:06]} 79. Kxd5 {[%emt 0:00:10]} 1/2-1/2

[Event "GER-ch Youth-U12 2024"]
[Site "Willingen"]
[Date "2024.05.19"]
[Round "2"]
[White "Fass, Ben"]
[Black "Wettstein, Levin"]
[Result "0-1"]
[ECO "C45"]
[WhiteElo "1027"]
[BlackElo "1753"]
[Annotator "NA RC"]
[PlyCount "118"]
[EventDate "2022.06.05"]
[EventType "swiss"]
[EventRounds "9"]
[EventCountry "GER"]
[SourceTitle "playchess.com"]
[Source "ChessBase"]
[SourceQuality "1"]
[TimeControl "40/4500+30:900+30"]

1. e4 {[%emt 0:00:00]} e5 {[%emt 0:00:00]} 2. Nf3 {[%emt 0:00:00]} Nc6 {[%emt 0:00:00]} 3. d4 {[%emt 0:00:00]} exd4 {[%emt 0:00:00]} 4. Nxd4 {[%emt 0:00:00]} Nf6 {[%emt 0:00:00]} 5. Nxc6 {[%emt 0:00:00]} bxc6 {[%emt 0:00:00]} 6. Bd3 {[%emt 0:00:00]} d5 {[%emt 0:00:00]} 7. e5 {[%emt 0:00:00]} Ng4 {[%emt 0:00:00]} 8. Bf4 {[%emt 0:00:00]} Bc5 {[%emt 0:00:00]} 9. O-O {[%emt 0:00:00]} O-O {[%emt 0:00:00]} 10. Be2 {[%emt 0:00:00]} Qh4 {[%emt 0:00:00]} 11. Bg3 {[%emt 0:00:00]} Qg5 {[%emt 0:00:00]} 12. h4 {[%emt 0:00:00]} Qf5 {[%emt 0:00:00]} 13. Bxg4 {[%emt 0:00:00]} Qxg4 {[%emt 0:00:00]} 14. Qxg4 {[%emt 0:00:00]} Bxg4 {[%emt 0:00:00]} 15. Nc3 {[%emt 0:00:00]} Bd4 {[%emt 0:00:00]} 16. Rfe1 {[%emt 0:00:00]} Rab8 {[%emt 0:00:00]} 17. Rab1 {[%emt 0:00:00]} Rxb2 {[%emt 0:00:00]} 18. Rxb2 {[%emt 0:00:00]} Bxc3 {[%emt 0:00:00]} 19. Rbb1 {[%emt 0:00:08]} Bxe1 {[%emt 0:00:00]} 20. Rxe1 {[%emt 0:00:19]} Rb8 {[%emt 0:00:00]} 21. Ra1 {[%emt 0:01:09]} Rb2 {[%emt 0:00:00]} 22. c3 {[%emt 0:00:13]} Kf8 {[%emt 0:01:36]} 23. Kf1 {[%emt 0:03:56]} Bf5 {[%emt 0:01:07]} 24. Bf4 {[%emt 0:00:47]} Bd3+ {[%emt 0:00:29]} 25. Ke1 {[%emt 0:00:38]} Re2+ {[%emt 0:00:06]} 26. Kd1 {[%emt 0:00:46]} Rxf2 {[%emt 0:00:08]} 27. Bg3 {[%emt 0:00:55]} Rxg2 {[%emt 0:00:19]} 28. Be1 {[%emt 0:01:38]} Ke7 {[%emt 0:01:18]} 29. a4 {[%emt 0:00:35]} Bc2+ {[%emt 0:01:34]} 30. Kc1 {[%emt 0:00:14]} Bb3 {[%emt 0:00:47]} 31. Rb1 {[%emt 0:01:42]} Rc2+ {[%emt 0:00:36]} 32. Kd1 {[%emt 0:00:13]} Rxc3+ {[%emt 0:01:09]} 33. Kd2 {[%emt 0:00:35]} Rc2+ {[%emt 0:00:10]} 34. Kd1 {[%emt 0:00:14]} Bxa4 {[%emt 0:00:32]} 35. Bd2 {[%emt 0:01:51]} Rc4+ {[%emt 0:00:29]} 36. Ke2 {[%emt 0:00:32]} Bb5 {[%emt 0:00:17]} 37. Kf3 {[%emt 0:01:27]} Rc2 {[%emt 0:01:52]} 38. Bb4+ {[%emt 0:00:00]} Ke6 {[%emt 0:00:30]} 39. Kf4 {[%emt 0:00:00]} Rc4+ {[%emt 0:00:40]} 40. Ke3 {[%emt 0:00:00]} Rxh4 {[%emt 0:00:29]} 41. Bc5 {[%emt 0:15:13]} Kxe5 {[%emt 0:15:33]} 42. Bxa7 {[%emt 0:00:09]} Rh3+ {[%emt 0:00:16]} 43. Kf2 {[%emt 0:00:19]} Kf4 {[%emt 0:00:33]} 44. Rb4+ {[%emt 0:00:14]} Bc4 {[%emt 0:00:09]} 45. Rb7 {[%emt 0:00:21]} Rh2+ {[%emt 0:00:37]} 46. Kg1 {[%emt 0:02:42]} Kg3 {[%emt 0:00:33]} 47. Bc5 {[%emt 0:00:40]} Rg2+ {[%emt 0:00:51]} 48. Kh1 {[%emt 0:00:16]} Rc2 {[%emt 0:00:25]} 49. Rb1 {[%emt 0:00:32]} Bd3 {[%emt 0:00:53]} 50. Rg1+ {[%emt 0:00:55]} Kh3 {[%emt 0:00:06]} 51. Rb1 {[%emt 0:00:25]} Rxc5 {[%emt 0:00:22]} 52. Rd1 {[%emt 0:00:50]} Be4+ {[%emt 0:01:34]} 53. Kg1 {[%emt 0:02:50]} Rc2 {[%emt 0:00:00]} 54. Kf1 {[%emt 0:00:40]} Kg3 {[%emt 0:00:00]} 55. Re1 {[%emt 0:00:13]} Rf2+ {[%emt 0:00:03]} 56. Kg1 {[%emt 0:00:14]} Rg2+ {[%emt 0:00:14]} 57. Kf1 {[%emt 0:00:29]} Bd3+ {[%emt 0:00:06]} 58. Re2 {[%emt 0:00:12]} Rxe2 {[%emt 0:00:05]} 59. Kg1 {[%emt 0:00:12]} Re1# {[%emt 0:00:35]} 0-1

[Event "GER-ch Youth-U12 2024"]
[Site "Willingen"]
[Date "2024.05.20"]
[Round "3"]
[White "Nezhyvenko, Mykhaylo"]
[Black "Bundan, Edward"]
[Result "1-0"]
[ECO "A36"]
[WhiteElo "2075"]
[BlackElo "1897"]
[Annotator "NA"]
[PlyCount "69"]
[EventDate "2022.06.05"]
[EventType "swiss"]
[EventRounds "9"]
[EventCountry "GER"]
[SourceTitle "playchess.com"]
[Source "ChessBase"]
[SourceQuality "1"]
[TimeControl "40/4500+30:900+30"]

1. e4 {[%emt 0:00:00]} c5 {[%emt 0:00:00]} 2. c4 {[%emt 0:00:00]} Nc6 {[%emt 0:00:00]} 3. Nc3 {[%emt 0:00:00]} g6 {[%emt 0:00:00]} 4. g3 {[%emt 0:00:00]} Bg7 {[%emt 0:00:00]} 5. Bg2 {[%emt 0:00:00]} e6 {[%emt 0:00:00]} 6. Nge2 {[%emt 0:00:00]} Nge7 {[%emt 0:00:00]} 7. O-O {[%emt 0:00:00]} O-O {[%emt 0:00:00]} 8. d3 {[%emt 0:00:00]} d6 {[%emt 0:00:00]} 9. Rb1 {[%emt 0:00:00]} Rb8 {[%emt 0:00:00]} 10. a3 {[%emt 0:00:00]} b6 {[%emt 0:00:00]} 11. b4 {[%emt 0:00:00]} Nd4 {[%emt 0:13:59]} 12. Bf4 {[%emt 0:07:35]} e5 {[%emt 0:02:27]} 13. Bg5 {[%emt 0:02:31]} f6 {[%emt 0:01:10]} 14. Bd2 {[%emt 0:00:39]} Bd7 {[%emt 0:00:52]} 15. f4 {[%emt 0:05:51]} Qc7 {[%emt 0:05:27]} 16. fxe5 {[%emt 0:05:59]} dxe5 {[%emt 0:02:53]} 17. Nxd4 {[%emt 0:01:39]} cxd4 {[%emt 0:00:23]} 18. Nd5 {[%emt 0:00:08]} Nxd5 {[%emt 0:00:32]} 19. exd5 {[%emt 0:00:14]} a5 {[%emt 0:05:14]} 20. Rc1 {[%emt 0:02:21]} Qa7 {[%emt 0:08:20]} 21. bxa5 {[%emt 0:04:08]} bxa5 {[%emt 0:00:21]} 22. c5 {[%emt 0:00:33]} Bb5 {[%emt 0:02:11]} 23. Qc2 {[%emt 0:09:23]} Rbc8 {[%emt 0:03:55]} 24. Qb3 {[%emt 0:03:44]} Qa6 {[%emt 0:10:09]} 25. a4 {[%emt 0:02:26]} Bxd3 {[%emt 0:04:02]} 26. d6+ {[%emt 0:00:08]} Kh8 {[%emt 0:00:15]} 27. Bb7 {[%emt 0:00:33]} Qa7 {[%emt 0:02:31]} 28. Bxc8 {[%emt 0:00:06]} Bxf1 {[%emt 0:00:26]} 29. Qb7 {[%emt 0:00:11]} Qxb7 {[%emt 0:01:06]} 30. Bxb7 {[%emt 0:00:02]} Bh3 {[%emt 0:00:43]} 31. c6 {[%emt 0:00:15]} Rd8 {[%emt 0:09:22]} 32. c7 {[%emt 0:00:08]} Rxd6 {[%emt 0:00:18]} 33. c8=Q+ {[%emt 0:00:09]} Bxc8 {[%emt 0:00:07]} 34. Rxc8+ {[%emt 0:00:10]} Bf8 {[%emt 0:00:20]} 35. Bh6 {[%emt 0:00:08]} 1-0

[Event "GER-ch Youth-U12 2024"]
[Site "Willingen"]
[Date "2024.05.20"]
[Round "3"]
[White "Sheng, Ming"]
[Black "Peglau, Paul David"]
[Result "1/2-1/2"]
[ECO "B90"]
[WhiteElo "2031"]
[BlackElo "1806"]
[Annotator "NA"]
[PlyCount "61"]
[EventDate "2022.06.05"]
[EventType "swiss"]
[EventRounds "9"]
[EventCountry "GER"]
[SourceTitle "playchess.com"]
[Source "ChessBase"]
[SourceQuality "1"]
[TimeControl "40/4500+30:900+30"]

1. e4 {[%emt 0:00:00]} c5 {[%emt 0:00:00]} 2. Nf3 {[%emt 0:00:00]} d6 {[%emt 0:00:00]} 3. d4 {[%emt 0:00:00]} cxd4 {[%emt 0:00:00]} 4. Nxd4 {[%emt 0:00:00]} Nf6 {[%emt 0:00:00]} 5. Nc3 {[%emt 0:00:00]} a6 {[%emt 0:00:00]} 6. f3 {[%emt 0:00:00]} e5 {[%emt 0:00:00]} 7. Nb3 {[%emt 0:00:00]} Be7 {[%emt 0:00:00]} 8. Be3 {[%emt 0:00:00]} Be6 {[%emt 0:00:00]} 9. Qd2 {[%emt 0:00:00]} O-O {[%emt 0:00:00]} 10. O-O-O {[%emt 0:00:00]} b5 {[%emt 0:00:00]} 11. g4 {[%emt 0:00:00]} Nbd7 {[%emt 0:02:33]} 12. g5 {[%emt 0:00:00]} Nh5 {[%emt 0:04:16]} 13. Kb1 {[%emt 0:00:00]} Nc5 {[%emt 0:05:47]} 14. Nd5 {[%emt 0:00:00]} Bxd5 {[%emt 0:06:56]} 15. exd5 {[%emt 0:06:03]} Nxb3 {[%emt 0:03:17]} 16. axb3 {[%emt 0:02:03]} Rb8 {[%emt 0:13:01]} 17. b4 {[%emt 0:05:13]} Ra8 {[%emt 0:04:18]} 18. Rg1 {[%emt 0:04:25]} Nf4 {[%emt 0:12:42]} 19. Bxf4 {[%emt 0:11:41]} exf4 {[%emt 0:00:13]} 20. Qxf4 {[%emt 0:01:16]} a5 {[%emt 0:02:31]} 21. Bxb5 {[%emt 0:11:29]} axb4 {[%emt 0:02:13]} 22. Qxb4 {[%emt 0:02:16]} Bxg5 {[%emt 0:03:03]} 23. c4 {[%emt 0:03:32]} Qf6 {[%emt 0:06:40]} 24. Qc3 {[%emt 0:03:42]} Qxc3 {[%emt 0:05:51]} 25. bxc3 {[%emt 0:00:01]} Bf4 {[%emt 0:01:23]} 26. h4 {[%emt 0:03:22]} Ra3 {[%emt 0:01:37]} 27. Kb2 {[%emt 0:03:45]} Rfa8 {[%emt 0:00:32]} 28. Ra1 {[%emt 0:00:47]} Rxa1 {[%emt 0:00:08]} 29. Rxa1 {[%emt 0:00:05]} Rxa1 {[%emt 0:00:08]} 30. Kxa1 {[%emt 0:00:05]} Be3 {[%emt 0:00:09]} 31. Kb2 {[%emt 0:00:18]} 1/2-1/2

[Event "GER-ch Youth-U12 2024"]
[Site "Willingen"]
[Date "2024.05.20"]
[Round "3"]
[White "Belin, Anton"]
[Black "Heins, Simon"]
[Result "1-0"]
[ECO "C90"]
[WhiteElo "1948"]
[BlackElo "1626"]
[Annotator "NA"]
[PlyCount "101"]
[EventDate "2022.06.05"]
[EventType "swiss"]
[EventRounds "9"]
[EventCountry "GER"]
[SourceTitle "playchess.com"]
[Source "ChessBase"]
[SourceQuality "1"]
[TimeControl "40/4500+30:900+30"]

1. e4 {[%emt 0:00:00]} e5 {[%emt 0:00:00]} 2. Nf3 {[%emt 0:00:00]} Nc6 {[%emt 0:00:00]} 3. Bb5 {[%emt 0:00:00]} a6 {[%emt 0:00:00]} 4. Ba4 {[%emt 0:00:00]} b5 {[%emt 0:00:00]} 5. Bb3 {[%emt 0:00:00]} Nf6 {[%emt 0:00:00]} 6. O-O {[%emt 0:00:00]} Be7 {[%emt 0:00:00]} 7. Re1 {[%emt 0:00:00]} d6 {[%emt 0:00:00]} 8. c3 {[%emt 0:00:00]} Bg4 {[%emt 0:00:00]} 9. h3 {[%emt 0:00:00]} Bh5 {[%emt 0:00:00]} 10. d3 {[%emt 0:00:00]} O-O {[%emt 0:00:00]} 11. Nbd2 {[%emt 0:00:00]} b4 {[%emt 0:00:00]} 12. Nf1 {[%emt 0:01:36]} bxc3 {[%emt 0:00:00]} 13. bxc3 {[%emt 0:03:31]} d5 {[%emt 0:00:00]} 14. Ng3 {[%emt 0:03:17]} Bxf3 {[%emt 0:02:03]} 15. Qxf3 {[%emt 0:00:22]} d4 {[%emt 0:01:19]} 16. Ba4 {[%emt 0:02:35]} Nb8 {[%emt 0:02:05]} 17. Nf5 {[%emt 0:03:00]} dxc3 {[%emt 0:05:36]} 18. Bh6 {[%emt 0:02:08]} g6 {[%emt 0:00:35]} 19. Nxe7+ {[%emt 0:00:28]} Qxe7 {[%emt 0:00:09]} 20. Bg5 {[%emt 0:00:04]} Kg7 {[%emt 0:00:23]} 21. d4 {[%emt 0:01:21]} h6 {[%emt 0:00:27]} 22. Bh4 {[%emt 0:00:04]} g5 {[%emt 0:00:56]} 23. Bg3 {[%emt 0:00:06]} Nbd7 {[%emt 0:01:34]} 24. dxe5 {[%emt 0:01:41]} Nxe5 {[%emt 0:00:34]} 25. Qxc3 {[%emt 0:00:31]} Ng6 {[%emt 0:00:18]} 26. Rad1 {[%emt 0:03:17]} Rad8 {[%emt 0:00:41]} 27. Bxc7 {[%emt 0:02:02]} Rc8 {[%emt 0:13:29]} 28. e5 {[%emt 0:08:41]} Nxe5 {[%emt 0:04:55]} 29. Qxe5 {[%emt 0:00:12]} Qxc7 {[%emt 0:00:08]} 30. Rd6 {[%emt 0:02:11]} Qc3 {[%emt 0:02:00]} 31. Qxc3 {[%emt 0:00:21]} Rxc3 {[%emt 0:00:03]} 32. Rxa6 {[%emt 0:00:11]} Ra3 {[%emt 0:00:41]} 33. Bb5 {[%emt 0:00:08]} Rxa6 {[%emt 0:00:07]} 34. Bxa6 {[%emt 0:00:04]} Ra8 {[%emt 0:00:09]} 35. Bc4 {[%emt 0:00:05]} Ra7 {[%emt 0:01:01]} 36. f3 {[%emt 0:01:38]} h5 {[%emt 0:00:44]} 37. Kf2 {[%emt 0:01:58]} g4 {[%emt 0:00:37]} 38. Kg3 {[%emt 0:00:24]} gxh3 {[%emt 0:01:15]} 39. gxh3 {[%emt 0:00:26]} Rb7 {[%emt 0:03:16]} 40. Bb3 {[%emt 0:00:50]} Kf8 {[%emt 0:02:16]} 41. Kf4 {[%emt 0:16:40]} Nd7 {[%emt 0:16:40]} 42. Bd5 {[%emt 0:05:25]} Ra7 {[%emt 0:01:46]} 43. Bc6 {[%emt 0:02:23]} Nb6 {[%emt 0:01:12]} 44. Rb1 {[%emt 0:01:17]} Nc4 {[%emt 0:01:00]} 45. a4 {[%emt 0:01:14]} Kg7 {[%emt 0:01:18]} 46. Rb4 {[%emt 0:01:15]} Na5 {[%emt 0:01:57]} 47. Bd5 {[%emt 0:00:42]} Rd7 {[%emt 0:00:24]} 48. Rb5 {[%emt 0:00:24]} Nc4 {[%emt 0:00:45]} 49. Rc5 {[%emt 0:01:50]} Nb6 {[%emt 0:00:19]} 50. Bc6 {[%emt 0:00:09]} Nxa4 {[%emt 0:00:30]} 51. Rg5+ {[%emt 0:00:13]} 1-0

[Event "GER-ch Youth-U12 2024"]
[Site "Willingen"]
[Date "2024.05.20"]
[Round "3"]
[White "Li, Yunqi"]
[Black "Shevchenko, Igor"]
[Result "1/2-1/2"]
[ECO "B14"]
[WhiteElo "1940"]
[BlackElo "1758"]
[Annotator "NA"]
[PlyCount "77"]
[EventDate "2022.06.05"]
[EventType "swiss"]
[EventRounds "9"]
[EventCountry "GER"]
[SourceTitle "playchess.com"]
[Source "ChessBase"]
[SourceQuality "1"]
[TimeControl "40/4500+30:900+30"]

1. e4 {[%emt 0:00:00]} c6 {[%emt 0:00:00]} 2. d4 {[%emt 0:00:00]} d5 {[%emt 0:00:00]} 3. exd5 {[%emt 0:00:00]} cxd5 {[%emt 0:00:00]} 4. c4 {[%emt 0:00:00]} Nf6 {[%emt 0:00:00]} 5. Nc3 {[%emt 0:00:00]} Nc6 {[%emt 0:00:00]} 6. Bg5 {[%emt 0:00:00]} e6 {[%emt 0:00:00]} 7. Nf3 {[%emt 0:00:00]} Be7 {[%emt 0:00:00]} 8. c5 {[%emt 0:00:00]} Bd7 {[%emt 0:00:00]} 9. Bb5 {[%emt 0:00:00]} h6 {[%emt 0:00:00]} 10. Bh4 {[%emt 0:00:00]} Ne4 {[%emt 0:01:51]} 11. Bxe7 {[%emt 0:00:00]} Qxe7 {[%emt 0:01:45]} 12. Nxe4 {[%emt 0:07:01]} dxe4 {[%emt 0:00:25]} 13. Bxc6 {[%emt 0:00:14]} Bxc6 {[%emt 0:00:44]} 14. Ne5 {[%emt 0:01:25]} Qc7 {[%emt 0:04:07]} 15. O-O {[%emt 0:00:39]} O-O {[%emt 0:02:32]} 16. b4 {[%emt 0:00:55]} Rfd8 {[%emt 0:04:49]} 17. a4 {[%emt 0:00:15]} a6 {[%emt 0:00:52]} 18. Nc4 {[%emt 0:01:52]} Qf4 {[%emt 0:07:13]} 19. Nd6 {[%emt 0:02:43]} Rxd6 {[%emt 0:02:39]} 20. cxd6 {[%emt 0:01:32]} Qxd6 {[%emt 0:00:05]} 21. Qb3 {[%emt 0:05:07]} Qxd4 {[%emt 0:16:42]} 22. Rfd1 {[%emt 0:00:34]} Qb6 {[%emt 0:06:50]} 23. Rac1 {[%emt 0:01:01]} Bd5 {[%emt 0:00:42]} 24. Qa3 {[%emt 0:01:43]} f5 {[%emt 0:08:31]} 25. a5 {[%emt 0:03:05]} Qb5 {[%emt 0:02:51]} 26. Qb2 {[%emt 0:00:52]} Qe8 {[%emt 0:05:47]} 27. Rc7 {[%emt 0:04:20]} Qg6 {[%emt 0:00:34]} 28. h3 {[%emt 0:03:30]} Rf8 {[%emt 0:01:26]} 29. Qe5 {[%emt 0:05:25]} f4 {[%emt 0:03:01]} 30. Rxd5 {[%emt 0:01:22]} exd5 {[%emt 0:01:20]} 31. Qxd5+ {[%emt 0:02:10]} Kh8 {[%emt 0:00:03]} 32. Re7 {[%emt 0:01:27]} e3 {[%emt 0:01:46]} 33. Qe4 {[%emt 0:11:19]} exf2+ {[%emt 0:00:25]} 34. Kxf2 {[%emt 0:01:10]} Qxe4 {[%emt 0:02:19]} 35. Rxe4 {[%emt 0:00:30]} Rf7 {[%emt 0:00:16]} 36. h4 {[%emt 0:01:12]} Kh7 {[%emt 0:01:10]} 37. Kf3 {[%emt 0:00:46]} g5 {[%emt 0:01:08]} 38. hxg5 {[%emt 0:00:06]} hxg5 {[%emt 0:00:08]} 39. Kg4 {[%emt 0:00:14]} 1/2-1/2

[Event "GER-ch Youth-U12 2024"]
[Site "Willingen"]
[Date "2024.05.20"]
[Round "3"]
[White "Stehning, Toni"]
[Black "Schmidt, Jossip"]
[Result "1-0"]
[ECO "B38"]
[WhiteElo "1821"]
[BlackElo "1603"]
[Annotator "NA"]
[PlyCount "111"]
[EventDate "2022.06.05"]
[EventType "swiss"]
[EventRounds "9"]
[EventCountry "GER"]
[SourceTitle "playchess.com"]
[Source "ChessBase"]
[SourceQuality "1"]
[TimeControl "40/4500+30:900+30"]

1. e4 {[%emt 0:00:00]} c5 {[%emt 0:00:00]} 2. Nf3 {[%emt 0:00:00]} Nc6 {[%emt 0:00:00]} 3. d4 {[%emt 0:00:00]} cxd4 {[%emt 0:00:00]} 4. Nxd4 {[%emt 0:00:00]} g6 {[%emt 0:00:00]} 5. c4 {[%emt 0:00:00]} Bg7 {[%emt 0:00:00]} 6. Be3 {[%emt 0:00:00]} Nf6 {[%emt 0:00:00]} 7. Nc3 {[%emt 0:00:00]} d6 {[%emt 0:00:00]} 8. Be2 {[%emt 0:00:00]} O-O {[%emt 0:00:47]} 9. O-O {[%emt 0:00:00]} Bd7 {[%emt 0:02:31]} 10. Nc2 {[%emt 0:00:00]} h6 {[%emt 0:08:45]} 11. Qd2 {[%emt 0:00:00]} Kh7 {[%emt 0:04:09]} 12. h3 {[%emt 0:00:00]} Rc8 {[%emt 0:08:28]} 13. Rac1 {[%emt 0:00:00]} a6 {[%emt 0:02:30]} 14. Na3 {[%emt 0:02:52]} Qa5 {[%emt 0:03:55]} 15. f4 {[%emt 0:05:39]} Nxe4 {[%emt 0:01:18]} 16. Nxe4 {[%emt 0:01:15]} Qxd2 {[%emt 0:00:30]} 17. Bxd2 {[%emt 0:00:28]} Bxb2 {[%emt 0:00:18]} 18. Rc3 {[%emt 0:00:47]} Bxc3 {[%emt 0:04:24]} 19. Bxc3 {[%emt 0:01:09]} Nd8 {[%emt 0:04:45]} 20. Nb1 {[%emt 0:16:49]} f5 {[%emt 0:03:51]} 21. Ned2 {[%emt 0:06:32]} Ne6 {[%emt 0:06:28]} 22. Nb3 {[%emt 0:02:13]} Ba4 {[%emt 0:02:08]} 23. Ba1 {[%emt 0:03:41]} Bxb3 {[%emt 0:04:44]} 24. axb3 {[%emt 0:00:11]} Nc5 {[%emt 0:00:31]} 25. b4 {[%emt 0:01:46]} Ne4 {[%emt 0:00:53]} 26. Bd3 {[%emt 0:00:37]} e6 {[%emt 0:04:03]} 27. Rd1 {[%emt 0:07:06]} Rfd8 {[%emt 0:03:10]} 28. Bxe4 {[%emt 0:10:51]} fxe4 {[%emt 0:00:42]} 29. Bf6 {[%emt 0:02:30]} Rd7 {[%emt 0:01:14]} 30. c5 {[%emt 0:00:10]} d5 {[%emt 0:00:19]} 31. Nc3 {[%emt 0:00:17]} Rf7 {[%emt 0:00:41]} 32. Be5 {[%emt 0:00:13]} Rc6 {[%emt 0:01:59]} 33. Ne2 {[%emt 0:00:33]} Rc8 {[%emt 0:01:26]} 34. Nd4 {[%emt 0:00:24]} Re7 {[%emt 0:00:46]} 35. Bd6 {[%emt 0:00:35]} Ree8 {[%emt 0:00:17]} 36. Rb1 {[%emt 0:00:42]} Kg8 {[%emt 0:05:28]} 37. b5 {[%emt 0:03:00]} a5 {[%emt 0:02:13]} 38. b6 {[%emt 0:00:09]} Rcd8 {[%emt 0:06:12]} 39. Nb5 {[%emt 0:00:34]} Kf7 {[%emt 0:01:57]} 40. Ra1 {[%emt 0:00:25]} Rd7 {[%emt 0:03:32]} 41. Rxa5 {[%emt 0:15:25]} Rc8 {[%emt 0:00:00]} 42. Ra7 {[%emt 0:00:00]} Rc6 {[%emt 0:00:00]} 43. Kf2 {[%emt 0:00:00]} Kf6 {[%emt 0:00:00]} 44. Ke3 {[%emt 0:00:00]} Rdxd6 {[%emt 0:00:00]} 45. Nxd6 {[%emt 0:00:00]} Rxc5 {[%emt 0:00:00]} 46. Rxb7 {[%emt 0:00:00]} Rc3+ {[%emt 0:00:00]} 47. Kd2 {[%emt 0:00:00]} Rd3+ {[%emt 0:00:00]} 48. Kc2 {[%emt 0:00:00]} g5 {[%emt 0:00:00]} 49. Rf7+ {[%emt 0:00:00]} Kg6 {[%emt 0:00:00]} 50. b7 {[%emt 0:00:00]} Rg3 {[%emt 0:00:00]} 51. b8=Q {[%emt 0:00:29]} Rxg2+ {[%emt 0:00:00]} 52. Kd1 {[%emt 0:00:00]} e3 {[%emt 0:00:00]} 53. Rf6+ {[%emt 0:00:00]} Kh5 {[%emt 0:00:00]} 54. Rxh6+ {[%emt 0:00:00]} Kxh6 {[%emt 0:00:00]} 55. Qh8+ {[%emt 0:00:00]} Kg6 {[%emt 0:00:00]} 56. Qg8+ {[%emt 0:00:24]} 1-0